Cogmind - Beta 13 @@@ ROGUE MODE // 2024.04.06 @ 17:31:01 Player: SpaceWalrus Result: Destroyed by P-60 Hacker with Shock Rifle Performance ------------- Evolutions (4) 2000 Regions Visited (6) 1200 Robots Destroyed (115) 575 Value Destroyed (3463) 3463 Prototype IDs (4) 80 Alien Tech Used (0) 0 Bonus (677) 677 TOTAL SCORE: 7995 Bonus ------- High Alert Combat Kills 177 Entered DSFs 500 Cogmind --------- Core Integrity 0/850 Matter 290/300 Energy 61/100 System Corruption 23% Temperature Cool (0) Movement Hovering (56) Location -6/Factory Parts ------- > --- POWER (2) -------- (None) > --- PROPULSION (4) --- Improved Gravmag System Improved Gravmag System > --- UTILITY (6) ------ System Shield Improved System Shield > --- WEAPON (3) ------- Scythe > --- INVENTORY (5) ---- Improved Gravmag System Improved Sensor Array Advanced Signal Interpreter Core Analyzer Improved Hardlight Generator Peak State ------------ > --- POWER ------------ Light Fission Core Light Fission Core > --- PROPULSION ------- Armored Huge Wheel Armored Huge Wheel > --- UTILITY ---------- Improved Heat Sink Large Storage Unit Advanced Weight Redist. System Improved Particle Charger Improved Transmission Jammer Hardened Medium Armor Plating > --- WEAPON ----------- Advanced Assault Cannon Advanced Assault Cannon Advanced Assault Cannon > --- INVENTORY -------- Improved Gravmag System Matter Compressor Improved Sensor Array Advanced Signal Interpreter Core Analyzer Armor Integrity Analyzer Reaction Control System Hardened Medium Armor Plating Improved Hardlight Generator Improved Shield Generator Plasma Rifle Plasma Rifle Proton Cannon Heavy Flak Cannon Shock Bomb Launcher [Rating: 65] Favorites ----------- Power Light Nuclear Core Engine Light Deuterium Engine Power Core Light Nuclear Core Propulsion Light Treads Treads Light Treads Leg Carbon-fiber Leg Wheel Armored Huge Wheel Hover Unit Improved Gravmag System Flight Unit Xenon Bombardment Thruster Utility Large Storage Unit Device ECM Suite Storage Large Storage Unit Processor Improved Signal Interpreter Hackware Hacking Suite Protection Reactive Plating Weapon Advanced Assault Cannon Energy Gun Plasma Rifle Energy Cannon Advanced Beam Cannon Ballistic Gun Improved Assault Rifle Ballistic Cannon Advanced Assault Cannon Launcher Rocket Launcher Slashing Weapon Scythe Build | -11 -10 -9 -8 -7 -7 -6 ------- Run | Yrd Mat Mat Mat Fac DSF Fac Slots Evolved 8 | . . 2 2 2 . 2 Power 1 | . . . . 1 . . Propulsion 2 | . . . 1 . . 1 Utility 4 | . . 2 1 1 . . Weapon 1 | . . . . . . 1 Parts Attached 157 | 9 16 24 37 2 3 66 Power 23 | 1 . 3 2 1 1 15 Engine 8 | 1 . 2 . . 1 4 Core 15 | . . 1 2 1 . 11 Reactor . | . . . . . . . Propulsion 40 | 2 2 4 16 . 1 15 Treads 9 | . 2 4 3 . . . Leg 16 | 2 . . 12 . . 2 Wheel 4 | . . . 1 . 1 2 Hover 8 | . . . . . . 8 Flight 3 | . . . . . . 3 Utility 46 | 3 8 7 8 1 1 18 Device 17 | 2 2 2 2 . 1 8 Storage 8 | 1 3 . . 1 . 3 Processor 2 | . . 1 . . . 1 Hackware 5 | . 1 . 2 . . 2 Protection 14 | . 2 4 4 . . 4 Artifact . | . . . . . . . Weapon 48 | 3 6 10 11 . . 18 Energy Gun 13 | 1 1 3 2 . . 6 Energy Cannon 4 | . . . 3 . . 1 Ballistic Gun 12 | 2 3 4 3 . . . Ballistic Cannon 9 | . . . 2 . . 7 Launcher 7 | . 2 3 1 . . 1 Special Weapon . | . . . . . . . Impact Weapon . | . . . . . . . Slashing Weapon 3 | . . . . . . 3 Piercing Weapon . | . . . . . . . Special Melee Weapon . | . . . . . . . Unidentified Prototypes 4 | . 1 1 1 . . 1 Parts Lost 41 | . 1 5 6 . 1 28 Power 8 | . . . . . . 8 Propulsion 10 | . . . 2 . 1 7 Utility 11 | . . 3 1 . . 7 Weapon 12 | . 1 2 3 . . 6 Highest Loss Streak 6 | . 1 1 2 . 1 6 To Critical Strikes . | . . . . . . . Average Slot Usage (%) 88 | . 99 96 97 92 85 70 Engine 4 | . 14 7 . . 4 2 Core 5 | . . 3 9 15 9 7 Treads 11 | . 20 21 8 . . . Leg 4 | . 7 . 16 23 2 . Wheel 2 | . . . . . 6 6 Hover 1 | . . . . . . 4 Device 11 | . 10 11 8 7 14 12 Storage 9 | . 7 11 9 7 7 8 Hackware 9 | . 6 8 16 15 15 5 Protection 6 | . 4 8 9 7 7 3 Energy Gun 1 | . 2 1 1 . . 2 Ballistic Gun 8 | . 20 14 7 . . . Ballistic Cannon 3 | . . . 2 15 15 8 Launcher 3 | . 5 5 2 . . . Naked Turns . | . . . . . . . Heaviest Build 90 | 14 90 40 49 57 59 68 Greatest Support 65 | 20 40 40 62 54 54 65 Greatest Overweight (x) 9 | 1 2 5 2 1 1 9 Average Overweight (x) . | . . . . . . . Largest Inventory Capacity 25 | 8 25 15 15 15 15 15 Average Capacity 13 | 7 9 15 15 15 15 13 Most Carried 15 | 6 14 15 15 14 15 15 Average Carried 11 | 1 6 11 14 13 13 11 Final Capacity 15 | 8 15 15 15 15 15 5 Final Carried 15 | 3 11 15 15 14 15 5 Class Distribution -------------------- 48% | Mutant 29% | Hacker-Mutant 9% | Gunner 9% | Scavenger-Mutant 3% | Tank Dominant Class ---------------- Mutant | -10/Materials Mutant | -9/Materials Hacker-Mutant | -8/Materials Hacker-Mutant | -7/Factory Hacker-Mutant | -7/DSF Gunner | -6/Factory Resources | -11 -10 -9 -8 -7 -7 -6 ----------- Run | Yrd Mat Mat Mat Fac DSF Fac Matter Collected 3978 | 359 172 870 711 . 418 1448 Remotely . | . . . . . . . Salvage Created 4168 | 184 289 1154 803 . 376 1362 Parts 228 | 12 24 74 54 . 17 47 Haulers Intercepted 6 | . 2 . 3 . 1 . Recyclers Shooed 7 | 1 . . . . . 6 Parts Field Recycled . | . . . . . . . Retrieved Matter . | . . . . . . . Parts Self-Destructed . | . . . . . . . Prevented . | . . . . . . . Kills | -11 -10 -9 -8 -7 -7 -6 ------- Run | Yrd Mat Mat Mat Fac DSF Fac Combat Hostiles Destroyed 75 | . 7 28 15 . 8 17 Melee 5 | . . . . . . 5 Guns 34 | . 6 20 6 . . 2 Cannons 21 | . . . 3 . 8 10 AOE 15 | . 1 8 6 . . . Classes Destroyed 17 | 2 7 1 2 . 2 3 Worker 3 | . . . 3 . . . Builder 5 | . 2 . 1 . . 2 Tunneler 5 | 5 . . . . . . Hauler 6 | . 2 . 3 . 1 . Recycler 7 | 1 . 1 . . . 5 Mechanic 1 | . 1 . . . . . Operator 5 | . 2 . 2 . . 1 Watcher 8 | . 2 3 3 . . . Swarmer 18 | . 6 4 4 . 3 1 Grunt 30 | . 1 15 2 . 3 9 Brawler 1 | . . . . . . 1 Duelist 1 | . . . . . . 1 Sentry 16 | . . 9 5 . . 2 Specialist 1 | . . . . . 1 . Hunter 4 | . . . 4 . . . Programmer 3 | . . . . . . 3 Heavy 1 | . . . . . 1 . Best Kill Streak 7 | 2 5 6 7 . 3 4 Combat Bots Only 5 | . 3 5 5 . 3 3 Max Kills in Single Turn 5 | 1 5 2 2 . 1 1 Gunslinging 1 | . 1 . . . . . Exploded 2 | . 1 2 2 . . . Melee 1 | . . . . . . 1 Uniques/NPCs Destroyed . | . . . . . . . Combat | -11 -10 -9 -8 -7 -7 -6 -------- Run | Yrd Mat Mat Mat Fac DSF Fac Hostile Shots Fired 748 | . 61 160 81 . 77 369 Missed 244 | . 17 44 27 . 29 127 Damage Taken 7614 | . 672 1574 774 . 569 4025 Core 1468 | . 221 298 41 . 48 860 Absorbed by Shields 172 | . . . . . 172 . Ignored by Resistances 153 | . . . . . 153 . Regen/Repaired (Parts) 96 | . . 96 . . . . Core Remaining (%) 64 | 100 11 25 92 . 93 . Volleys Fired 306 | 24 31 74 60 . 39 78 Largest 3 | 2 2 2 2 . 2 3 Hottest 203 | 60 60 68 136 . 96 203 Shots Fired 578 | 42 62 139 107 . 78 150 Gun 345 | 42 60 120 80 . . 43 Cannon 199 | . . . 16 . 78 105 Launcher 34 | . 2 19 11 . . 2 Special . | . . . . . . . Kinetic 449 | 31 49 108 78 . 78 105 Thermal 47 | . . . 4 . . 43 Explosive 32 | . 2 19 11 . . . Electromagnetic 50 | 11 11 12 14 . . 2 Robot Hit Streak 19 | 6 4 19 10 . 8 8 Robot Miss Streak 9 | 4 4 2 3 . 6 9 Penetration Max 1 | . . . 1 . . . Secondary Targets 4 | . 3 1 . . . . Max Gunslinging Chain 1 | . 1 1 . . . . Shots Hit Robots 373 | 23 34 92 68 . 38 118 Core Hits 181 | 7 18 49 42 . 12 53 Critical Kills 1 | 1 . . . . . . Critical Parts Destroyed 1 | . . . 1 . . . Critical Strikes 14 | 1 1 . 1 . 4 7 Burn 3 | . . . . . . 3 Destroy 2 | 1 . . 1 . . . Blast 6 | . . . . . 4 2 Corrupt 1 | . 1 . . . . . Sever 2 | . . . . . . 2 Melee Attacks 34 | . . . . . . 34 Impact . | . . . . . . . Slashing 34 | . . . . . . 34 Piercing . | . . . . . . . Sneak Attacks 7 | . . . . . . 7 Combat Hostiles . | . . . . . . . Follow-up Attacks . | . . . . . . . Damage Inflicted 9763 | 301 959 1891 1772 . 1148 3692 Guns 3576 | 301 399 1261 905 . . 710 Cannons 2938 | . . . 219 . 1137 1582 Explosions 2037 | . 560 627 644 . . 206 Melee 1067 | . . . . . . 1067 Ramming 145 | . . 3 4 . 11 127 Kinetic 5255 | 194 319 1107 916 . 1137 1582 Thermal 1340 | . 487 . 61 . . 792 Explosive 1430 | . 73 627 644 . . 86 Electromagnetic 526 | 107 80 154 147 . . 38 Impact . | . . . . . . . Slashing 1067 | . . . . . . 1067 Piercing . | . . . . . . . Highest Corruption 23 | . 2 . . . . 23 Average Corruption 16 | . 2 . . . . 17 Corruption Purged . | . . . . . . . Corruption Blocked . | . . . . . . . Effects 61 | . 1 . . . . 60 Message Errors 14 | . . . . . . 14 Matter Fused 9 | . . . . . . 9 Heat Flow Errors 9 | . 1 . . . . 8 Energy Discharges 8 | . . . . . . 8 Parts Rejected 3 | . . . . . . 3 Parts Fused 1 | . . . . . . 1 Data Loss (minor) 3 | . . . . . . 3 Data Loss (major) 2 | . . . . . . 2 Alerts 3 | . . . . . . 3 Misdirections 8 | . . . . . . 8 Weapon Failures 1 | . . . . . . 1 Overload Shots . | . . . . . . . Overflow Damage 410 | . 119 . 6 . 55 230 Projectiles 105 | . . . . . 55 50 Explosions 203 | . 119 . 6 . . 78 Melee 102 | . . . . . . 102 Knockbacks 17 | . . . . . 4 13 Impact 1 | . . . . . . 1 Kinetic 16 | . . . . . 4 12 Secondary . | . . . . . . . Self-Inflicted Damage 587 | . 331 75 16 . 5 160 Shots 8 | . 4 2 1 . . 1 Rammed 9 | . . 1 . . 1 7 Targets Rammed 12 | . . 1 3 . 1 7 Kicked 2 | . . . 2 . . . Crushed 1 | . . . 1 . . . Highest Temperature 441 | . 366 129 148 . 96 441 Average Temperature 81 | . 58 22 46 . 32 116 Received Heat Transfer 2027 | . 6 603 144 . 107 1167 Effects 9 | . 1 . . . . 8 Shutdowns 2 | . 1 . . . . 1 Energy Bleed 1 | . . . . . . 1 Interference 5 | . . . . . . 5 Damage (minor) 1 | . . . . . . 1 Siege Activations . | . . . . . . . Robots Corrupted . | . . . . . . . Combat Hostiles . | . . . . . . . Parts Fried 2 | . . 1 1 . . . Impact Corruptions 1 | . . . . . . 1 Robots Melted . | . . . . . . . Combat Hostiles . | . . . . . . . Parts Melted 2 | . . . . . . 2 Heat Transferred 2409 | . 400 . 111 . . 1898 Parts Sabotaged . | . . . . . . . Parts Stolen . | . . . . . . . Parts Stripped . | . . . . . . . Power Chain Reactions . | . . . . . . . Alert | -11 -10 -9 -8 -7 -7 -6 ------- Run | Yrd Mat Mat Mat Fac DSF Fac Peak Influence 598 | 30 359 598 511 223 351 470 Initial 219 | . 19 45 198 219 156 184 Average 294 | 12 138 293 384 219 293 323 Maximum Alert Level 2 | . 1 2 2 1 1 2 Low Security (%) 28 | 100 69 40 8 . 19 6 Level 1 42 | . 30 23 31 100 80 71 Level 2 29 | . . 35 60 . . 21 Level 3 . | . . . . . . . Level 4 . | . . . . . . . Level 5 . | . . . . . . . High Security . | . . . . . . . Max Security . | . . . . . . . Sterilizations 1 | . . . . . 1 . Squads Dispatched 23 | . 1 7 3 1 1 10 Investigation 5 | . . 3 1 1 . . Extermination 3 | . . . . . . 3 Reinforcement 11 | . 1 3 2 . 1 4 Assault 1 | . . 1 . . . . Garrison 3 | . . . . . . 3 Intercept . | . . . . . . . Searches Triggered . | . . . . . . . Construction Impeded 1 | . . . . . . 1 Haulers Reinforced 1 | . . . . . . 1 Active Scanning Responses . | . . . . . . . Cargo Convoy Interrupts . | . . . . . . . Stealth | -11 -10 -9 -8 -7 -7 -6 --------- Run | Yrd Mat Mat Mat Fac DSF Fac Distress Signals 9 | . 3 3 2 . . 1 Communications Jammed 6 | . . . . . . 6 Distress Signals 3 | . . . . . . 3 Times Spotted 140 | . 11 52 23 . 9 45 Peak Tracking Total 6 | . 6 5 5 . 3 5 Tactical Retreats 21 | . 1 7 1 . . 12 Traps | -11 -10 -9 -8 -7 -7 -6 ------- Run | Yrd Mat Mat Mat Fac DSF Fac Traps Triggered 7 | . 1 3 . . 2 1 Indirectly . | . . . . . . . Trap Hack Attempts . | . . . . . . . Triggered . | . . . . . . . Disarmed 1 | . . . 1 . . . Reprogrammed . | . . . . . . . Reused . | . . . . . . . Traps Extracted . | . . . . . . . Installed . | . . . . . . . Triggered . | . . . . . . . Machines | -11 -10 -9 -8 -7 -7 -6 ---------- Run | Yrd Mat Mat Mat Fac DSF Fac Machines Disabled 20 | . 6 5 4 . 1 4 Max in Single Turn 2 | . 2 2 1 . 1 2 Machines Repaired . | . . . . . . . Machines Dismantled . | . . . . . . . Machines Sabotaged . | . . . . . . . Overloaded Fab Kills . | . . . . . . . Hacking | -11 -10 -9 -8 -7 -7 -6 --------- Run | Yrd Mat Mat Mat Fac DSF Fac Machines Accessed 20 | . 3 9 5 1 . 2 Terminals 18 | . 3 7 5 1 . 2 Fabricators . | . . . . . . . Repair Stations 1 | . . 1 . . . . Recycling Units 1 | . . 1 . . . . Scanalyzers . | . . . . . . . Garrison Access . | . . . . . . . Total Hacks 44 | . 5 21 12 3 . 3 Successful 26 | . 1 13 8 1 . 3 Failed 18 | . 4 8 4 2 . . Catastrophic . | . . . . . . . Database Lockouts . | . . . . . . . Manual . | . . . . . . . Terminals 36 | . 5 13 12 3 . 3 Fabricators . | . . . . . . . Repair Stations 5 | . . 5 . . . . Recycling Units 3 | . . 3 . . . . Scanalyzers . | . . . . . . . Garrison Access . | . . . . . . . Terminal Hacks 18 | . 1 5 8 1 . 3 Record 5 | . . 2 3 . . . Open DSF 2 | . . . . 1 . 1 Emergency Access Points 1 | . . . 1 . . . Alert Level 3 | . . 2 1 . . . Unreport Threat 1 | . 1 . . . . . Disarm Traps 2 | . . . 2 . . . Maintenance Status 1 | . . . . . . 1 Investigation Status 1 | . . 1 . . . . Zone Layout 2 | . . . 1 . . 1 Fabricator Hacks . | . . . . . . . Repair Station Hacks 5 | . . 5 . . . . Scan Component 2 | . . 2 . . . . Repair 2 | . . 2 . . . . Refit 1 | . . 1 . . . . Recycling Unit Hacks 3 | . . 3 . . . . Recycle Component 1 | . . 1 . . . . Report Inventory 1 | . . 1 . . . . Retrieve Matter 1 | . . 1 . . . . Scanalyzer . | . . . . . . . Garrison Access Hacks . | . . . . . . . Unauthorized Hacks . | . . . . . . . Terminals . | . . . . . . . Fabricators . | . . . . . . . Repair Stations . | . . . . . . . Recycling Units . | . . . . . . . Scanalyzers . | . . . . . . . Garrison Access . | . . . . . . . Data Cores Recovered 1 | . . . 1 . . . Used . | . . . . . . . Hacking Detections 11 | . 2 6 2 1 . . Full Trace Events 3 | . . 1 1 1 . . Feedback Events . | . . . . . . . Feedback Blocked . | . . . . . . . Robot Schematics Acquired . | . . . . . . . Robots Built . | . . . . . . . Authchips . | . . . . . . . Time . | . . . . . . . Total Robot Build Rating . | . . . . . . . Part Schematics Acquired . | . . . . . . . Parts Built . | . . . . . . . Authchips . | . . . . . . . Time . | . . . . . . . Total Part Build Rating . | . . . . . . . Parts Repaired 2 | . . 2 . . . . Time 52 | . . 52 . . . . Parts Recycled 1 | . . 1 . . . . Recycled Matter . | . . . . . . . Retrieved Matter . | . . . . . . . Retrieved Components . | . . . . . . . Parts Scanalyzed . | . . . . . . . Part Schematics Acquired . | . . . . . . . Parts Damaged . | . . . . . . . Bothacking | -11 -10 -9 -8 -7 -7 -6 ------------ Run | Yrd Mat Mat Mat Fac DSF Fac Used RIF Installer . | . . . . . . . Robots Hacked . | . . . . . . . Non-combat . | . . . . . . . Combat . | . . . . . . . Robot Hacks Applied . | . . . . . . . Relay Couplers Released . | . . . . . . . Fabnet Peak Effective % . | . . . . . . . Robots Rewired . | . . . . . . . Allies Hacked . | . . . . . . . Hacks Repelled . | . . . . . . . Allies | -11 -10 -9 -8 -7 -7 -6 -------- Run | Yrd Mat Mat Mat Fac DSF Fac Total Allies . | . . . . . . . Largest Group . | . . . . . . . Highest-Rated Group . | . . . . . . . Highest-Rated Ally . | . . . . . . . Total Orders . | . . . . . . . Ally Attacks . | . . . . . . . Total Damage . | . . . . . . . Kills . | . . . . . . . Allies Corrupted . | . . . . . . . Allies Melted . | . . . . . . . Intel | -11 -10 -9 -8 -7 -7 -6 ------- Run | Yrd Mat Mat Mat Fac DSF Fac Robot Analysis Total . | . . . . . . . Derelict Logs Recovered . | . . . . . . . Drone Launches . | . . . . . . . Drone Recoveries . | . . . . . . . Exploration | -11 -10 -9 -8 -7 -7 -6 ------------- Run | Yrd Mat Mat Mat Fac DSF Fac Turns Passed 6723 | 221 722 2116 1402 10 387 1865 Spaces Moved 3777 | 127 393 1127 760 4 211 1155 Core 58 | 27 . . . . . 31 Treads 1661 | . 279 1118 264 . . . Legs 797 | 100 114 . 496 4 24 59 Wheels 800 | . . . . . 187 613 Hover 222 | . . 9 . . . 213 Flight 239 | . . . . . . 239 Fastest Speed 37 | 50 120 160 100 120 115 37 Average Speed 141 | 106 149 162 146 155 116 121 Slowest Speed 500 | 120 320 500 260 190 190 500 Overloaded Moves . | . . . . . . . Propulsion Burnouts . | . . . . . . . Robots Hopped . | . . . . . . . Cave-ins Triggered 1 | . . . . . . 1 Exploration Rate (%) 54 | 6 65 82 61 . 94 17 Regions Visited 6 Branch Regions . Pre-discovered Areas . | . . . . . . . Known Exits Taken 2 | . . 1 . 1 . . Unknown Exits Taken 3 | 1 1 . 1 . . . Scrap Searched . | . . . . . . . Spaces Dug . | . . . . . . . Terrain Destroyed 340 | . 80 129 71 . . 60 Melee . | . . . . . . . Projectile 22 | . . . 5 . . 17 AOE 318 | . 80 129 66 . . 43 Terrain Rammed . | . . . . . . . Walls Destroyed . | . . . . . . . Machines Disabled . | . . . . . . . Actions | -11 -10 -9 -8 -7 -7 -6 --------- Run | Yrd Mat Mat Mat Fac DSF Fac Total 4579 | 170 468 1273 945 8 276 1439 Wait 60 | 2 7 4 14 2 5 26 Move 3771 | 126 392 1126 759 3 210 1155 Hop . | . . . . . . . Pick Up 128 | 9 14 27 32 . 5 41 Fast Attach 23 | 1 2 2 10 . . 8 Attach 53 | 6 2 9 6 2 2 26 Detach 4 | . . 1 1 1 . 1 Swap 81 | 2 12 13 21 . 1 32 Drop 99 | . 8 16 39 . 5 31 Fire 306 | 24 31 74 60 . 39 78 Melee 33 | . . . . . . 33 Ram 9 | . . . . . 1 8 Kick 2 | . . . 2 . . . Crush 2 | . . 1 1 . . . Escape Stasis 8 | . . . . . 8 . Rewire . | . . . . . . . Trap . | . . . . . . . Miscellaneous . | . . . . . . . Route ------- -11/Scrapyard -10/Materials (discovered 2 exits: *Mat / [*Min]) -9/Materials (discovered 4 exits: *Mat x3 / *Min) -8/Materials -7/Factory -7/DSF -6/Factory History --------- Turn | Location | Event 6 | -11/Scrapyard | Discovered new exit (range 13) 222 | -11/Scrapyard | Entered Materials 306 | -10/Materials | Build established: Mutant 557 | -10/Materials | Core integrity fell below 50% 557 | -10/Materials | Core integrity fell below 20% 656 | -10/Materials | Discovered new exit (range 9) 855 | -10/Materials | Discovered new exit (range 15) 944 | -10/Materials | Entered another Materials area 944 | -9/Materials | Evolved 2 slots: Utility x2 962 | -9/Materials | Repaired ECM Suite 988 | -9/Materials | Repaired Lgt. Treads 1329 | -9/Materials | Discovered new exit (range 3) 1719 | -9/Materials | Discovered new exit (range 14) 1960 | -9/Materials | Build established: Scavenger-Mutant 2332 | -9/Materials | Build established: Mutant 2337 | -9/Materials | Core integrity fell below 50% 2745 | -9/Materials | Discovered new exit (range 14) 2767 | -9/Materials | Identified exit to Mines 2833 | -9/Materials | Discovered new exit (range 8) 2849 | -9/Materials | Identified exit to Materials 2944 | -9/Materials | First assault squad dispatched 3060 | -9/Materials | Entered another Materials area 3060 | -8/Materials | Evolved 2 slots: Propulsion x1, Utility x1 3632 | -8/Materials | Build established: Hacker-Mutant 4099 | -8/Materials | Discovered new exit (range 7) 4462 | -8/Materials | Entered Factory 4462 | -7/Factory | Evolved 2 slots: Power x1, Utility x1 4470 | -7/Factory | Identified exit to DSF 4472 | -7/Factory | Entered DSF 4517 | -7/DSF | Additional patrols routed to DSF 4599 | -7/DSF | Discovered new exit (range 15) 4794 | -7/DSF | Sterilization system engaged 4814 | -7/DSF | Ambient heat levels rising (+10) 4829 | -7/DSF | Ambient heat levels rising (+10) 4844 | -7/DSF | Ambient heat levels rising (+10) 4859 | -7/DSF | Ambient heat levels rising (+10) 4859 | -7/DSF | Entered Factory 4859 | -6/Factory | Evolved 2 slots: Propulsion x1, Weapon x1 5411 | -6/Factory | Build established: Gunner 5539 | -6/Factory | Crushed by falling debris 5633 | -6/Factory | System corruption reached 10% 5715 | -6/Factory | Lost 3 parts (1u2w) 5752 | -6/Factory | Garrison activated, responded to threat 5842 | -6/Factory | Lost 6 parts (2p2n1u1w) 5945 | -6/Factory | Core integrity fell below 50% 5962 | -6/Factory | Lost 5 parts (1p1n3w) 6601 | -6/Factory | Lost 3 parts (1p1n1u) 6649 | -6/Factory | Build established: Hacker-Mutant 6707 | -6/Factory | Core integrity fell below 20% 6724 | -6/Factory | Destroyed by P-60 Hacker with Shock Rifle Last Messages --------------- Acquired 10 matter. K-01 Serf collects debris. Dropped Com. Ion Cannon. R-10 Processor collects Hvy. Laser. R-10 Processor collects Wheel. System corrupted: Energy discharge (-64). System corrupted: IFF burst signal emitted. Connecting with DSF Access... System corrupted: Substantial component data lost. Lgt. Fission Core destroyed. System corrupted: Scythe rejected. Xenon Bombardment Thruster destroyed. Lgt. Ion Engine destroyed. P-60 Hacker Gravmag System severed. P-60 Hacker signal jammed. Reaction Control System destroyed. Xenon Bombardment Thruster destroyed. System corrupted: Transmission Jammer rejected. Acquired Imp. Gravmag System. Map ----- +----------------------------------------------------+ | #??????????????????????????????? | | #??????????????????????????????? | | #??????????????????????????????? | | #??????????????????????????????? | | #??????????????????????????????? | | #??????????????????????????????? | | #??????????????????????????????? | | ???????????????????????????????? | | ???????????????????????????????? | | ???????????????????????????????? | | ???????????????????????????????? | | ???????????????????????????????? | | ???????????????????????????????? | | ???????????????????????????????? | | ???????????????????????????????? | | ???????????????????????????????? | | ????????##?????????????????????? | | ???????# #?????????????????????? | | ###########???? ? ?????????????? | | #==! ! #???? ? ?????????????? | | #=== % #???? ? ?????????????? | | #*!!! #???? " ?????????????? | | #!!* #???? " ??############ | | #![ #???? " ??# # | | # """ #???? ??# =!! # | | # """"" #???? ??# @! !# | | # """"" #???? ??# ! # | | ##/#############+#### # | | # / ]# | | #! Y # | | =p """ """ # | | / # """ """ # | | ! # """ """ # | | ##+#############+##+# # | | ??????# % % # """ " " # | | """??????# # """ "R" # | | """ ?????# # """ """ # | | """ ?????# # # | | "????# ##### ###### | | ????# # #?###????? | | !!* ???# ##?????????? | | ?! ? ???# % ##?????????? | | ????? !?##############?????????? | | ?????? ?# ##?????????? | | ????????# #??????????? | | ????????# #??????????? | | ????????# #??????????? | | ????????# #??????????? | | ????????# #??????????? | | ????????# #??????????? | +----------------------------------------------------+ Best States ------------- Heat Dissipation 51 Energy Generation 31 Energy Capacity 380 Matter Stores 499 Matter Capacity 550 Sight Range 16 Robot Scan Range 15 Terrain Scan Range 16 Terrain Scan Density 10 ECM Strength 1 Jamming Range 14 Additional Mass Support 9 Armor Coverage 225 Resistance: KI 20 Resistance: EM 15 Evasion (%) 70 Recoil Reduction 3 Particle Charging 20 Offensive Hacking 10 Defensive Hacking 22 Item Schematics ----------------- None Robot Schematics ------------------ None Fabricated ------------ Nothing Alien Tech Used ----------------- None Achievements -------------- Significant Disruption System Compromised Troublemaker Universal Adapter Unlikely Earthworm Challenges ------------ None Game ------ Seed ExplosiveLinearChronowheel Manual? 0 Play Time 01:30:00 Cumulative 5.2 hours Start 2024.04.06 @ 15:59:44 End 2024.04.06 @ 17:31:01 Sessions 1 Manual Loads 0 Difficulty Rogue Special Mode None Game No. 8 Rogue 8 Adventurer 0 Explorer 0 Win Type - Total 0 Types 0/0/0/0/0/0/0/0/0 Lore% 11 Gallery% 13 Achievement% 11 Wizard Run 0 Options --------- Layout 1 ASCII 0 Keyboard 0 Movement Numpad Keybinds 0 Fullscreen 1 Font 24/Smallcaps Map View 50x40 Zoom Use 0% Tactical HUD 0 Map Filters NONE Filters NONE Steam 1 RUN: 5ad1c90d-097f-4439-a790-51c755bfc64b